[Event "European Online Club-ch-E 2021"]
[Site "Online"]
[Date "2021.03.27"]
[Round "7.9"]
[White "Sirosh, Ilja"]
[Black "Oparin, Grigoriy"]
[Result "1/2-1/2"]
[ECO "C54"]
[WhiteElo "2400"]
[BlackElo "2652"]
[Annotator "ChessBase"]
[PlyCount "207"]
[EventDate "2021.03.27"]
[EventType "team-tourn"]
[EventCountry "NET"]
[SourceTitle "playchess.com"]
[Source "ChessBase"]
[SourceQuality "1"]
[TimeControl "900+5"]

1. e4 {[%emt 0:00:00]} e5 {[%emt 0:00:06]} 2. Nf3 {[%emt 0:00:02]} Nc6 {[%emt 0:00:02]} 3. Bc4 {[%emt 0:00:01]} Nf6 {[%emt 0:00:02]} 4. d3 {[%emt 0:00:04]} Bc5 {[%emt 0:00:05]} 5. c3 {[%emt 0:00:04]} O-O {[%emt 0:00:02]} 6. O-O {[%emt 0:00:02]} h6 {[%emt 0:00:03]} 7. Nbd2 {[%emt 0:00:26]} d6 {[%emt 0:00:04]} 8. Re1 {[%emt 0:00:49]} a5 {[%emt 0:00:17]} 9. Nf1 {[%emt 0:00:28]} Be6 {[%emt 0:01:41]} 10. Bb5 {[%emt 0:01:16]} Bb6 {[%emt 0:00:17]} 11. d4 {[%emt 0:00:36]} exd4 {[%emt 0:00:08]} 12. cxd4 {[%emt 0:00:53]} Bg4 {[%emt 0:00:02]} 13. Be3 {[%emt 0:02:56]} Bxf3 {[%emt 0:03:14]} 14. gxf3 {[%emt 0:00:05]} Ne7 {[%emt 0:00:01]} 15. Ng3 {[%emt 0:00:58]} Nh7 {[%emt 0:00:02]} 16. Bd3 {[%emt 0:02:30]} Kh8 {[%emt 0:00:45]} 17. Kh1 {[%emt 0:00:37]} c5 {[%emt 0:03:12]} 18. d5 {[%emt 0:02:15]} c4 {[%emt 0:00:01]} 19. Bxc4 {[%emt 0:00:12]} f5 {[%emt 0:00:02]} 20. f4 {[%emt 0:00:30]} fxe4 {[%emt 0:00:12]} 21. Qb3 {[%emt 0:00:58]} Bxe3 {[%emt 0:00:26]} 22. fxe3 {[%emt 0:00:21]} Nf5 {[%emt 0:00:02]} 23. Nxf5 {[%emt 0:00:27]} Rxf5 {[%emt 0:00:00]} 24. Rg1 {[%emt 0:00:07]} Rb8 {[%emt 0:00:58]} 25. Be2 {[%emt 0:00:03]} Nf6 {[%emt 0:00:32]} 26. Rad1 {[%emt 0:00:02]} Qg8 {[%emt 0:00:14]} 27. Qa4 {[%emt 0:00:19]} b5 {[%emt 0:00:48]} 28. Qxa5 {[%emt 0:00:06]} Rxd5 {[%emt 0:00:06]} 29. Qc7 {[%emt 0:00:09]} Rc8 {[%emt 0:00:22]} 30. Qe7 {[%emt 0:00:02]} Re8 {[%emt 0:00:54]} 31. Qc7 {[%emt 0:00:01]} Qf8 {[%emt 0:00:32]} 32. Qb7 {[%emt 0:00:09]} Rb8 {[%emt 0:00:12]} 33. Qc6 {[%emt 0:00:04]} Rc8 {[%emt 0:00:14]} 34. Qb7 {[%emt 0:00:01]} Rxd1 {[%emt 0:00:06]} 35. Bxd1 {[%emt 0:00:01]} Rb8 {[%emt 0:00:08]} 36. Qa7 {[%emt 0:00:10]} Ra8 {[%emt 0:00:11]} 37. Qb7 {[%emt 0:00:02]} Rxa2 {[%emt 0:00:25]} 38. Bb3 {[%emt 0:00:17]} Rxb2 {[%emt 0:00:16]} 39. Rc1 {[%emt 0:00:05]} Rxb3 {[%emt 0:01:13]} 40. Rc8 {[%emt 0:00:02]} Qxc8 {[%emt 0:00:11]} 41. Qxc8+ {[%emt 0:00:02]} Ng8 {[%emt 0:00:01]} 42. Qe6 {[%emt 0:00:03]} Rxe3 {[%emt 0:00:05]} 43. Qxd6 {[%emt 0:00:01]} Rf3 {[%emt 0:00:09]} 44. Qb8 {[%emt 0:00:07]} b4 {[%emt 0:00:03]} 45. Kg2 {[%emt 0:00:08]} b3 {[%emt 0:00:02]} 46. Qa8 {[%emt 0:00:07]} Rxf4 {[%emt 0:00:05]} 47. Qb7 {[%emt 0:00:06]} e3 {[%emt 0:00:09]} 48. Qxb3 {[%emt 0:00:04]} Re4 {[%emt 0:00:01]} 49. Qd3 {[%emt 0:00:04]} Re7 {[%emt 0:00:03]} 50. Kf1 {[%emt 0:00:05]} e2+ {[%emt 0:00:01]} 51. Ke1 {[%emt 0:00:02]} Nf6 {[%emt 0:00:03]} 52. Qd8+ {[%emt 0:00:03]} Re8 {[%emt 0:00:01]} 53. Qd4 {[%emt 0:00:04]} Re4 {[%emt 0:00:03]} 54. Qd8+ {[%emt 0:00:03]} Kh7 {[%emt 0:00:01]} 55. Qd3 {[%emt 0:00:03]} h5 {[%emt 0:00:03]} 56. h3 {[%emt 0:00:06]} Kh6 {[%emt 0:00:06]} 57. Qd2+ {[%emt 0:00:02]} g5 {[%emt 0:00:04]} 58. Qd8 {[%emt 0:00:02]} Kg6 {[%emt 0:00:01]} 59. Qc8 {[%emt 0:00:04]} g4 {[%emt 0:00:04]} 60. hxg4 {[%emt 0:00:02]} hxg4 {[%emt 0:00:00]} 61. Qc7 {[%emt 0:00:11]} Kg5 {[%emt 0:00:05]} 62. Qg7+ {[%emt 0:00:06]} Kf5 {[%emt 0:00:01]} 63. Qc7 {[%emt 0:00:01]} Re5 {[%emt 0:00:19]} 64. Qc3 {[%emt 0:00:20]} Kf4 {[%emt 0:00:14]} 65. Qd4+ {[%emt 0:00:02]} Kf5 {[%emt 0:00:04]} 66. Qc3 {[%emt 0:00:04]} Nd5 {[%emt 0:00:05]} 67. Qd3+ {[%emt 0:00:05]} Kf6 {[%emt 0:00:06]} 68. Qg3 {[%emt 0:00:09]} Ne3 {[%emt 0:00:13]} 69. Qf4+ {[%emt 0:00:04]} Ke6 {[%emt 0:00:04]} 70. Qh6+ {[%emt 0:00:04]} Kd5 {[%emt 0:00:02]} 71. Qh1+ {[%emt 0:00:05]} Kd4 {[%emt 0:00:04]} 72. Kxe2 {[%emt 0:00:05]} Nf5+ {[%emt 0:00:08]} 73. Kd2 {[%emt 0:00:08]} g3 {[%emt 0:00:05]} 74. Qg1+ {[%emt 0:00:05]} Ke4 {[%emt 0:00:03]} 75. Qe1+ {[%emt 0:00:07]} Kf4 {[%emt 0:00:01]} 76. Qf1+ {[%emt 0:00:02]} Kg4 {[%emt 0:00:02]} 77. Qc4+ {[%emt 0:00:02]} Kg5 {[%emt 0:00:13]} 78. Qg8+ {[%emt 0:00:03]} Kf4 {[%emt 0:00:03]} 79. Qg6 {[%emt 0:00:09]} Re4 {[%emt 0:00:11]} 80. Qb6 {[%emt 0:00:12]} Re7 {[%emt 0:00:13]} 81. Qb8+ {[%emt 0:00:04]} Kg4 {[%emt 0:00:03]} 82. Qg8+ {[%emt 0:00:02]} Rg7 {[%emt 0:00:01]} 83. Qc4+ {[%emt 0:00:03]} Kh5 {[%emt 0:00:06]} 84. Qf4 {[%emt 0:00:03]} Rg5 {[%emt 0:00:03]} 85. Qf3+ {[%emt 0:00:08]} Kg6 {[%emt 0:00:02]} 86. Qc6+ {[%emt 0:00:03]} Kh7 {[%emt 0:00:04]} 87. Qd7+ {[%emt 0:00:09]} Kh6 {[%emt 0:00:07]} 88. Qc6+ {[%emt 0:00:06]} Rg6 {[%emt 0:00:04]} 89. Qh1+ {[%emt 0:00:05]} Kg5 {[%emt 0:00:02]} 90. Qe4 {[%emt 0:00:07]} Rd6+ {[%emt 0:00:03]} 91. Ke1 {[%emt 0:00:01]} Rd4 {[%emt 0:00:08]} 92. Qa8 {[%emt 0:00:04]} Kf4 {[%emt 0:00:04]} 93. Qb8+ {[%emt 0:00:07]} Kf3 {[%emt 0:00:02]} 94. Qb7+ {[%emt 0:00:03]} Kg4 {[%emt 0:00:04]} 95. Qa8 {[%emt 0:00:10]} Kg5 {[%emt 0:00:19]} 96. Kf1 {[%emt 0:00:02]} Rd2 {[%emt 0:00:09]} 97. Qg8+ {[%emt 0:00:03]} Kf4 {[%emt 0:00:02]} 98. Qc4+ {[%emt 0:00:02]} Nd4 {[%emt 0:00:06]} 99. Qf7+ {[%emt 0:00:05]} Ke3 {[%emt 0:00:04]} 100. Qe7+ {[%emt 0:00:03]} Kd3 {[%emt 0:00:10]} 101. Qh7+ {[%emt 0:00:01]} Kc3 {[%emt 0:00:02]} 102. Qg7 {[%emt 0:00:05]} g2+ {[%emt 0:00:09]} 103. Qxg2 {[%emt 0:00:13]} Rxg2 {[%emt 0:00:01]} 104. Kxg2 {[%emt 0:00:02]} 1/2-1/2

[Event "European Online Club-ch-E 2021"]
[Site "Online"]
[Date "2021.03.27"]
[Round "7.10"]
[White "Moussard, Jules"]
[Black "Chukavin, Kirill"]
[Result "1-0"]
[ECO "B84"]
[WhiteElo "2635"]
[BlackElo "2384"]
[Annotator "ChessBase"]
[PlyCount "77"]
[EventDate "2021.03.27"]
[EventType "team-tourn"]
[EventCountry "NET"]
[SourceTitle "playchess.com"]
[Source "ChessBase"]
[SourceQuality "1"]
[TimeControl "900+5"]

1. e4 {[%emt 0:00:00]} c5 {[%emt 0:00:14]} 2. Nf3 {[%emt 0:00:02]} e6 {[%emt 0:00:01]} 3. d4 {[%emt 0:00:02]} cxd4 {[%emt 0:00:01]} 4. Nxd4 {[%emt 0:00:01]} Nf6 {[%emt 0:00:02]} 5. Nc3 {[%emt 0:00:03]} d6 {[%emt 0:00:01]} 6. Be3 {[%emt 0:00:12]} a6 {[%emt 0:00:02]} 7. Be2 {[%emt 0:00:06]} Be7 {[%emt 0:00:08]} 8. g4 {[%emt 0:00:05]} Nc6 {[%emt 0:00:52]} 9. g5 {[%emt 0:00:21]} Nd7 {[%emt 0:00:03]} 10. h4 {[%emt 0:00:03]} Qc7 {[%emt 0:03:21]} 11. h5 {[%emt 0:02:16]} b5 {[%emt 0:03:22]} 12. Nxc6 {[%emt 0:00:06]} Qxc6 {[%emt 0:00:05]} 13. Qd4 {[%emt 0:00:02]} e5 {[%emt 0:01:10]} 14. Qd2 {[%emt 0:00:11]} Nb6 {[%emt 0:00:30]} 15. Bxb6 {[%emt 0:01:09]} Qxb6 {[%emt 0:00:04]} 16. Nd5 {[%emt 0:00:02]} Qb7 {[%emt 0:01:18]} 17. O-O-O {[%emt 0:01:01]} Be6 {[%emt 0:00:57]} 18. f4 {[%emt 0:00:37]} Bxd5 {[%emt 0:00:25]} 19. exd5 {[%emt 0:00:02]} exf4 {[%emt 0:00:23]} 20. Qxf4 {[%emt 0:00:06]} h6 {[%emt 0:00:06]} 21. gxh6 {[%emt 0:00:08]} Rxh6 {[%emt 0:00:02]} 22. Kb1 {[%emt 0:00:16]} Bf6 {[%emt 0:01:10]} 23. Rhf1 {[%emt 0:00:37]} Be5 {[%emt 0:00:23]} 24. Qg4 {[%emt 0:01:03]} Rc8 {[%emt 0:00:04]} 25. Bd3 {[%emt 0:00:12]} Rc5 {[%emt 0:00:05]} 26. Bg6 {[%emt 0:00:45]} Rc7 {[%emt 0:01:11]} 27. Qf3 {[%emt 0:01:48]} Re7 {[%emt 0:00:21]} 28. Bf5 {[%emt 0:00:02]} Rf6 {[%emt 0:00:08]} 29. Qg4 {[%emt 0:00:05]} Rh6 {[%emt 0:00:13]} 30. a3 {[%emt 0:00:16]} Kf8 {[%emt 0:00:07]} 31. Rf3 {[%emt 0:00:04]} Kg8 {[%emt 0:00:06]} 32. c3 {[%emt 0:00:43]} Rc7 {[%emt 0:00:02]} 33. Bd3 {[%emt 0:00:09]} Qc8 {[%emt 0:00:10]} 34. Bf5 {[%emt 0:00:02]} Qb7 {[%emt 0:00:02]} 35. Qg5 {[%emt 0:00:26]} Bf6 {[%emt 0:00:12]} 36. Qg4 {[%emt 0:00:48]} Rc4 {[%emt 0:00:03]} 37. Re3 {[%emt 0:00:09]} Be5 {[%emt 0:00:09]} 38. Qg5 {[%emt 0:00:06]} Qb8 {[%emt 0:00:27]} 39. Rg1 {[%emt 0:00:58]} 1-0

[Event "European Online Club-ch-E 2021"]
[Site "Online"]
[Date "2021.03.27"]
[Round "7.11"]
[White "Valner, Uku"]
[Black "Gozzoli, Yannick"]
[Result "1-0"]
[ECO "C54"]
[WhiteElo "2296"]
[BlackElo "2600"]
[Annotator "ChessBase"]
[PlyCount "73"]
[EventDate "2021.03.27"]
[EventType "team-tourn"]
[EventCountry "NET"]
[SourceTitle "playchess.com"]
[Source "ChessBase"]
[SourceQuality "1"]
[TimeControl "900+5"]

1. e4 {[%emt 0:00:00]} e5 {[%emt 0:01:22]} 2. Nf3 {[%emt 0:00:06]} Nc6 {[%emt 0:00:02]} 3. Bc4 {[%emt 0:00:04]} Bc5 {[%emt 0:00:19]} 4. O-O {[%emt 0:00:02]} d6 {[%emt 0:00:01]} 5. c3 {[%emt 0:00:27]} Nf6 {[%emt 0:00:03]} 6. d3 {[%emt 0:00:04]} h6 {[%emt 0:00:11]} 7. Be3 {[%emt 0:00:36]} Bb6 {[%emt 0:00:18]} 8. a4 {[%emt 0:00:12]} O-O {[%emt 0:00:09]} 9. h3 {[%emt 0:00:24]} Ne7 {[%emt 0:02:24]} 10. Nbd2 {[%emt 0:00:38]} c6 {[%emt 0:00:18]} 11. d4 {[%emt 0:00:25]} exd4 {[%emt 0:00:28]} 12. Bxd4 {[%emt 0:00:03]} Bxd4 {[%emt 0:01:09]} 13. Nxd4 {[%emt 0:00:00]} Ng6 {[%emt 0:00:03]} 14. a5 {[%emt 0:01:15]} a6 {[%emt 0:00:51]} 15. Re1 {[%emt 0:01:57]} Re8 {[%emt 0:00:40]} 16. b4 {[%emt 0:00:42]} d5 {[%emt 0:00:41]} 17. exd5 {[%emt 0:00:10]} cxd5 {[%emt 0:00:05]} 18. Rxe8+ {[%emt 0:00:33]} Qxe8 {[%emt 0:00:00]} 19. Bb3 {[%emt 0:01:43]} Bd7 {[%emt 0:00:05]} 20. Qf3 {[%emt 0:00:23]} Qe5 {[%emt 0:00:25]} 21. Bc2 {[%emt 0:00:36]} Nf4 {[%emt 0:00:30]} 22. N2b3 {[%emt 0:01:27]} Re8 {[%emt 0:01:30]} 23. Nc5 {[%emt 0:00:12]} Qg5 {[%emt 0:00:42]} 24. Nxd7 {[%emt 0:01:17]} Nxd7 {[%emt 0:00:00]} 25. h4 {[%emt 0:00:02]} Qe5 {[%emt 0:01:42]} 26. Kf1 {[%emt 0:01:55]} Nf6 {[%emt 0:00:14]} 27. g3 {[%emt 0:00:08]} Ne6 {[%emt 0:00:01]} 28. Nxe6 {[%emt 0:01:06]} Rxe6 {[%emt 0:00:04]} 29. Rd1 {[%emt 0:00:12]} Rc6 {[%emt 0:00:12]} 30. Rd4 {[%emt 0:00:09]} Re6 {[%emt 0:00:59]} 31. Kg2 {[%emt 0:00:20]} g6 {[%emt 0:00:07]} 32. Bb3 {[%emt 0:00:04]} Rd6 {[%emt 0:00:12]} 33. Qd3 {[%emt 0:00:07]} Kg7 {[%emt 0:00:15]} 34. Qd2 {[%emt 0:00:16]} Ne4 {[%emt 0:01:02]} 35. Qe3 {[%emt 0:00:06]} Kf6 {[%emt 0:00:09]} 36. Bxd5 {[%emt 0:00:11]} Nxc3 {[%emt 0:00:23]} 37. Rf4+ {[%emt 0:00:02]} 1-0

[Event "European Online Club-ch-E 2021"]
[Site "Online"]
[Date "2021.03.27"]
[Round "7.12"]
[White "Cornette, Matthieu"]
[Black "Liiva, Riho"]
[Result "1/2-1/2"]
[ECO "B01"]
[WhiteElo "2555"]
[BlackElo "2443"]
[Annotator "ChessBase"]
[PlyCount "75"]
[EventDate "2021.03.27"]
[EventType "team-tourn"]
[EventCountry "NET"]
[SourceTitle "playchess.com"]
[Source "ChessBase"]
[SourceQuality "1"]
[TimeControl "900+5"]

1. e4 {[%emt 0:00:00]} d5 {[%emt 0:00:04]} 2. exd5 {[%emt 0:00:03]} Qxd5 {[%emt 0:00:02]} 3. Nc3 {[%emt 0:00:02]} Qd6 {[%emt 0:00:01]} 4. d4 {[%emt 0:00:02]} Nf6 {[%emt 0:00:02]} 5. Nf3 {[%emt 0:00:02]} a6 {[%emt 0:00:01]} 6. Bd3 {[%emt 0:00:14]} Bg4 {[%emt 0:00:03]} 7. h3 {[%emt 0:00:12]} Bh5 {[%emt 0:00:03]} 8. O-O {[%emt 0:00:08]} Nbd7 {[%emt 0:00:21]} 9. Re1 {[%emt 0:00:57]} e6 {[%emt 0:00:05]} 10. g4 {[%emt 0:00:46]} Bg6 {[%emt 0:00:03]} 11. d5 {[%emt 0:00:08]} Nc5 {[%emt 0:01:29]} 12. Bxg6 {[%emt 0:02:01]} hxg6 {[%emt 0:00:03]} 13. dxe6 {[%emt 0:00:05]} Nxe6 {[%emt 0:00:14]} 14. Ng5 {[%emt 0:02:54]} Qxd1 {[%emt 0:00:41]} 15. Nxd1 {[%emt 0:00:00]} Be7 {[%emt 0:00:41]} 16. Nxe6 {[%emt 0:00:07]} fxe6 {[%emt 0:00:03]} 17. Kg2 {[%emt 0:00:15]} Kf7 {[%emt 0:00:46]} 18. c4 {[%emt 0:03:01]} Rad8 {[%emt 0:01:26]} 19. Ne3 {[%emt 0:00:24]} Bb4 {[%emt 0:01:32]} 20. Re2 {[%emt 0:00:12]} Rd3 {[%emt 0:00:23]} 21. a3 {[%emt 0:00:32]} Be7 {[%emt 0:00:20]} 22. b4 {[%emt 0:01:12]} Ne4 {[%emt 0:00:19]} 23. Bb2 {[%emt 0:00:52]} Bf6 {[%emt 0:00:29]} 24. c5 {[%emt 0:00:13]} Ng5 {[%emt 0:00:53]} 25. Rh1 {[%emt 0:00:10]} Bxb2 {[%emt 0:02:02]} 26. Rxb2 {[%emt 0:00:00]} Rxa3 {[%emt 0:00:02]} 27. Rd2 {[%emt 0:00:09]} Ke7 {[%emt 0:00:28]} 28. Rhd1 {[%emt 0:01:35]} Nxh3 {[%emt 0:00:29]} 29. Rd7+ {[%emt 0:00:10]} Kf6 {[%emt 0:00:03]} 30. Rxc7 {[%emt 0:00:05]} Nf4+ {[%emt 0:00:31]} 31. Kg1 {[%emt 0:00:07]} Ra2 {[%emt 0:00:59]} 32. Rxb7 {[%emt 0:00:12]} Kg5 {[%emt 0:00:37]} 33. Rf1 {[%emt 0:00:18]} Rh3 {[%emt 0:00:37]} 34. c6 {[%emt 0:00:15]} Ne2+ {[%emt 0:00:31]} 35. Kg2 {[%emt 0:00:02]} Nf4+ {[%emt 0:00:11]} 36. Kg1 {[%emt 0:00:01]} Ne2+ {[%emt 0:00:26]} 37. Kg2 {[%emt 0:00:02]} Nf4+ {[%emt 0:00:02]} 38. Kg1 {[%emt 0:00:01]} 1/2-1/2

[Event "European Online Club-ch-E 2021"]
[Site "Online"]
[Date "2021.03.27"]
[Round "7.13"]
[White "Dedebas, Emre Emin"]
[Black "Guseinov, Gadir"]
[Result "1/2-1/2"]
[ECO "A45"]
[WhiteElo "2335"]
[BlackElo "2665"]
[Annotator "ChessBase"]
[PlyCount "102"]
[EventDate "2021.03.27"]
[EventType "team-tourn"]
[EventCountry "NET"]
[SourceTitle "playchess.com"]
[Source "ChessBase"]
[SourceQuality "1"]
[TimeControl "900+5"]

1. d4 {[%emt 0:00:00]} Nf6 {[%emt 0:00:03]} 2. Bf4 {[%emt 0:00:05]} g6 {[%emt 0:00:04]} 3. Nc3 {[%emt 0:00:02]} d5 {[%emt 0:00:04]} 4. e3 {[%emt 0:00:02]} Bg7 {[%emt 0:00:02]} 5. h4 {[%emt 0:00:03]} h5 {[%emt 0:00:02]} 6. Nf3 {[%emt 0:00:03]} O-O {[%emt 0:00:05]} 7. Ne5 {[%emt 0:00:11]} c5 {[%emt 0:00:06]} 8. Qd2 {[%emt 0:00:05]} Nc6 {[%emt 0:00:08]} 9. dxc5 {[%emt 0:03:33]} Qa5 {[%emt 0:00:53]} 10. Nxc6 {[%emt 0:02:06]} bxc6 {[%emt 0:00:05]} 11. Be5 {[%emt 0:00:15]} Bf5 {[%emt 0:01:07]} 12. Bd3 {[%emt 0:00:58]} Bxd3 {[%emt 0:00:06]} 13. cxd3 {[%emt 0:00:17]} Qxc5 {[%emt 0:00:05]} 14. O-O {[%emt 0:00:31]} Ng4 {[%emt 0:00:15]} 15. d4 {[%emt 0:00:14]} Qa5 {[%emt 0:00:08]} 16. Bxg7 {[%emt 0:00:29]} Kxg7 {[%emt 0:00:02]} 17. Rac1 {[%emt 0:00:22]} Rac8 {[%emt 0:00:16]} 18. a3 {[%emt 0:00:17]} Kh7 {[%emt 0:01:49]} 19. Ne4 {[%emt 0:01:32]} Qc7 {[%emt 0:00:23]} 20. Ng5+ {[%emt 0:00:03]} Kg8 {[%emt 0:00:02]} 21. g3 {[%emt 0:00:01]} e5 {[%emt 0:00:09]} 22. Rc5 {[%emt 0:02:00]} Qd7 {[%emt 0:00:21]} 23. Rfc1 {[%emt 0:00:09]} f6 {[%emt 0:00:39]} 24. Nf3 {[%emt 0:00:06]} e4 {[%emt 0:00:02]} 25. Ne1 {[%emt 0:00:15]} Nh6 {[%emt 0:00:07]} 26. Kh2 {[%emt 0:00:10]} g5 {[%emt 0:00:12]} 27. Ng2 {[%emt 0:00:07]} Ng4+ {[%emt 0:00:04]} 28. Kg1 {[%emt 0:00:03]} Nh6 {[%emt 0:00:01]} 29. Kh2 {[%emt 0:00:01]} Nf5 {[%emt 0:00:04]} 30. Qc2 {[%emt 0:00:47]} Ne7 {[%emt 0:00:49]} 31. Qe2 {[%emt 0:00:08]} Qe8 {[%emt 0:00:05]} 32. b4 {[%emt 0:00:08]} Rb8 {[%emt 0:00:14]} 33. Ra5 {[%emt 0:00:10]} Rb7 {[%emt 0:00:05]} 34. Rac5 {[%emt 0:00:10]} Kg7 {[%emt 0:00:05]} 35. Qa6 {[%emt 0:00:11]} Qd7 {[%emt 0:00:30]} 36. Qe2 {[%emt 0:00:11]} Rh8 {[%emt 0:00:06]} 37. Rb1 {[%emt 0:00:11]} Ng6 {[%emt 0:00:09]} 38. b5 {[%emt 0:00:08]} cxb5 {[%emt 0:00:08]} 39. Rbxb5 {[%emt 0:00:05]} Ne7 {[%emt 0:02:48]} 40. Rxb7 {[%emt 0:01:10]} Qxb7 {[%emt 0:00:03]} 41. Qb5 {[%emt 0:00:50]} Rb8 {[%emt 0:00:14]} 42. Qe2 {[%emt 0:00:04]} Kg6 {[%emt 0:00:06]} 43. Qc2 {[%emt 0:00:02]} Qb2 {[%emt 0:00:13]} 44. Ne1 {[%emt 0:00:11]} Qa1 {[%emt 0:00:39]} 45. Ng2 {[%emt 0:00:12]} Rb2 {[%emt 0:00:04]} 46. Qa4 {[%emt 0:00:02]} Rb8 {[%emt 0:00:54]} 47. Qd7 {[%emt 0:00:02]} Rb1 {[%emt 0:02:18]} 48. Qe8+ {[%emt 0:00:07]} Kf5 {[%emt 0:00:12]} 49. Qd7+ {[%emt 0:00:02]} Kg6 {[%emt 0:00:02]} 50. Qe8+ {[%emt 0:00:02]} Kf5 {[%emt 0:00:01]} 51. Qd7+ {[%emt 0:00:06]} Kg6 {[%emt 0:00:02]} 1/2-1/2

[Event "European Online Club-ch-E 2021"]
[Site "Online"]
[Date "2021.03.27"]
[Round "7.14"]
[White "Abasov, Nijat"]
[Black "Angun, Batu"]
[Result "0-1"]
[ECO "D90"]
[WhiteElo "2664"]
[BlackElo "2326"]
[Annotator "ChessBase"]
[PlyCount "96"]
[EventDate "2021.03.27"]
[EventType "team-tourn"]
[EventCountry "NET"]
[SourceTitle "playchess.com"]
[Source "ChessBase"]
[SourceQuality "1"]
[TimeControl "900+5"]

1. c4 {[%emt 0:00:00]} Nf6 {[%emt 0:00:08]} 2. Nc3 {[%emt 0:00:02]} g6 {[%emt 0:00:05]} 3. Nf3 {[%emt 0:00:42]} Bg7 {[%emt 0:00:21]} 4. d4 {[%emt 0:00:11]} d5 {[%emt 0:00:06]} 5. cxd5 {[%emt 0:00:14]} Nxd5 {[%emt 0:00:04]} 6. Na4 {[%emt 0:00:00]} Bf5 {[%emt 0:01:38]} 7. Nh4 {[%emt 0:00:03]} Bd7 {[%emt 0:00:05]} 8. e4 {[%emt 0:00:03]} e5 {[%emt 0:00:08]} 9. Nf3 {[%emt 0:00:11]} Nb6 {[%emt 0:00:04]} 10. Nxb6 {[%emt 0:00:33]} axb6 {[%emt 0:00:10]} 11. Bg5 {[%emt 0:04:06]} f6 {[%emt 0:01:14]} 12. Be3 {[%emt 0:00:02]} exd4 {[%emt 0:00:19]} 13. Nxd4 {[%emt 0:00:10]} Qe7 {[%emt 0:00:43]} 14. Qb3 {[%emt 0:01:56]} Na6 {[%emt 0:03:09]} 15. Bb5 {[%emt 0:02:03]} Nc5 {[%emt 0:00:42]} 16. Bxd7+ {[%emt 0:00:02]} Qxd7 {[%emt 0:00:04]} 17. Qc2 {[%emt 0:00:02]} O-O {[%emt 0:00:29]} 18. O-O {[%emt 0:00:02]} Rfe8 {[%emt 0:00:46]} 19. Rfd1 {[%emt 0:01:53]} Nxe4 {[%emt 0:00:52]} 20. Rac1 {[%emt 0:00:14]} c5 {[%emt 0:01:02]} 21. Nf3 {[%emt 0:00:40]} Qf7 {[%emt 0:00:12]} 22. a3 {[%emt 0:00:04]} f5 {[%emt 0:00:47]} 23. Bf4 {[%emt 0:00:16]} Rad8 {[%emt 0:00:16]} 24. h4 {[%emt 0:00:02]} b5 {[%emt 0:00:44]} 25. Ng5 {[%emt 0:00:15]} Nxg5 {[%emt 0:00:13]} 26. Bxg5 {[%emt 0:00:06]} Rxd1+ {[%emt 0:00:05]} 27. Rxd1 {[%emt 0:00:00]} c4 {[%emt 0:00:16]} 28. Qd2 {[%emt 0:00:13]} Qe6 {[%emt 0:00:09]} 29. g3 {[%emt 0:00:17]} Qe4 {[%emt 0:00:46]} 30. Qd7 {[%emt 0:01:21]} h6 {[%emt 0:00:07]} 31. Be3 {[%emt 0:00:11]} Qc6 {[%emt 0:00:16]} 32. Qd2 {[%emt 0:00:17]} Kh7 {[%emt 0:00:09]} 33. Qb4 {[%emt 0:00:23]} Qf3 {[%emt 0:00:21]} 34. Rd7 {[%emt 0:00:15]} Rxe3 {[%emt 0:00:29]} 35. fxe3 {[%emt 0:00:00]} Qxg3+ {[%emt 0:00:04]} 36. Kf1 {[%emt 0:00:02]} Qf3+ {[%emt 0:00:07]} 37. Ke1 {[%emt 0:00:01]} Qxe3+ {[%emt 0:00:02]} 38. Kd1 {[%emt 0:00:15]} Qf3+ {[%emt 0:00:09]} 39. Kc1 {[%emt 0:00:17]} Qf4+ {[%emt 0:00:07]} 40. Kb1 {[%emt 0:00:14]} Qe5 {[%emt 0:00:13]} 41. Re7 {[%emt 0:00:09]} Qf6 {[%emt 0:00:05]} 42. Rxb7 {[%emt 0:00:14]} f4 {[%emt 0:00:08]} 43. Rxb5 {[%emt 0:00:19]} f3 {[%emt 0:00:07]} 44. Qxc4 {[%emt 0:00:01]} f2 {[%emt 0:00:05]} 45. Qf1 {[%emt 0:00:01]} Qxh4 {[%emt 0:00:08]} 46. Ka2 {[%emt 0:00:11]} Qf6 {[%emt 0:00:11]} 47. a4 {[%emt 0:00:13]} Qe6+ {[%emt 0:00:06]} 48. Rb3 {[%emt 0:00:01]} Qe1 {[%emt 0:00:05]} 0-1

[Event "European Online Club-ch-E 2021"]
[Site "Online"]
[Date "2021.03.27"]
[Round "7.15"]
[White "Ozenir, Ekin Baris"]
[Black "Durarbayli, Vasif"]
[Result "0-1"]
[ECO "D10"]
[WhiteElo "2309"]
[BlackElo "2606"]
[Annotator "ChessBase"]
[PlyCount "108"]
[EventDate "2021.03.27"]
[EventType "team-tourn"]
[EventCountry "NET"]
[SourceTitle "playchess.com"]
[Source "ChessBase"]
[SourceQuality "1"]
[TimeControl "900+5"]

1. d4 {[%emt 0:00:00]} d5 {[%emt 0:00:05]} 2. c4 {[%emt 0:00:03]} c6 {[%emt 0:00:01]} 3. cxd5 {[%emt 0:00:09]} cxd5 {[%emt 0:00:03]} 4. Bf4 {[%emt 0:00:02]} Nc6 {[%emt 0:00:07]} 5. e3 {[%emt 0:00:04]} Nf6 {[%emt 0:00:05]} 6. Nc3 {[%emt 0:00:12]} a6 {[%emt 0:01:02]} 7. Bd3 {[%emt 0:00:33]} Bg4 {[%emt 0:00:29]} 8. Nge2 {[%emt 0:00:25]} e6 {[%emt 0:00:41]} 9. O-O {[%emt 0:00:42]} Bd6 {[%emt 0:00:45]} 10. Bxd6 {[%emt 0:01:26]} Qxd6 {[%emt 0:00:16]} 11. Rc1 {[%emt 0:00:24]} O-O {[%emt 0:00:40]} 12. Qd2 {[%emt 0:00:34]} Bxe2 {[%emt 0:00:10]} 13. Qxe2 {[%emt 0:00:07]} Rac8 {[%emt 0:01:27]} 14. Rfd1 {[%emt 0:01:31]} Rc7 {[%emt 0:00:16]} 15. Na4 {[%emt 0:02:15]} Rfc8 {[%emt 0:00:41]} 16. Nc5 {[%emt 0:01:37]} a5 {[%emt 0:01:36]} 17. Qd2 {[%emt 0:02:28]} g6 {[%emt 0:01:02]} 18. h3 {[%emt 0:00:10]} b6 {[%emt 0:00:52]} 19. Na4 {[%emt 0:00:11]} Nb4 {[%emt 0:00:07]} 20. Rxc7 {[%emt 0:00:35]} Qxc7 {[%emt 0:00:35]} 21. Nc3 {[%emt 0:00:28]} Nxd3 {[%emt 0:00:20]} 22. Qxd3 {[%emt 0:00:02]} Ne8 {[%emt 0:00:09]} 23. g3 {[%emt 0:01:05]} Nd6 {[%emt 0:00:05]} 24. Nb5 {[%emt 0:00:37]} Nxb5 {[%emt 0:00:04]} 25. Qxb5 {[%emt 0:00:02]} Qc2 {[%emt 0:00:02]} 26. Rf1 {[%emt 0:00:58]} Rc6 {[%emt 0:00:11]} 27. Re1 {[%emt 0:00:22]} Kg7 {[%emt 0:00:21]} 28. Qe2 {[%emt 0:00:06]} Qf5 {[%emt 0:00:19]} 29. Kg2 {[%emt 0:00:08]} Rc2 {[%emt 0:00:06]} 30. Qf3 {[%emt 0:00:01]} Qxf3+ {[%emt 0:00:32]} 31. Kxf3 {[%emt 0:00:03]} Rxb2 {[%emt 0:00:02]} 32. Rc1 {[%emt 0:00:09]} a4 {[%emt 0:00:14]} 33. Rc6 {[%emt 0:00:07]} Kf6 {[%emt 0:00:44]} 34. a3 {[%emt 0:00:04]} Rb3 {[%emt 0:00:02]} 35. g4 {[%emt 0:00:02]} h5 {[%emt 0:00:21]} 36. Kf4 {[%emt 0:00:04]} g5+ {[%emt 0:00:24]} 37. Kf3 {[%emt 0:00:03]} h4 {[%emt 0:00:03]} 38. Kg2 {[%emt 0:00:01]} Ke7 {[%emt 0:01:07]} 39. Rc7+ {[%emt 0:00:03]} Ke8 {[%emt 0:00:32]} 40. Rb7 {[%emt 0:00:15]} f6 {[%emt 0:00:02]} 41. Kf3 {[%emt 0:00:08]} b5 {[%emt 0:00:36]} 42. Kg2 {[%emt 0:00:06]} Kd8 {[%emt 0:00:07]} 43. Rb6 {[%emt 0:00:03]} Kd7 {[%emt 0:00:02]} 44. Rb8 {[%emt 0:00:03]} Kc7 {[%emt 0:00:10]} 45. Rf8 {[%emt 0:00:02]} Rxa3 {[%emt 0:00:13]} 46. Rxf6 {[%emt 0:00:02]} Kd6 {[%emt 0:00:03]} 47. f4 {[%emt 0:00:02]} gxf4 {[%emt 0:00:04]} 48. Rxf4 {[%emt 0:00:03]} Rxe3 {[%emt 0:00:03]} 49. Kf2 {[%emt 0:00:04]} Rxh3 {[%emt 0:00:04]} 50. g5 {[%emt 0:00:03]} Rg3 {[%emt 0:00:02]} 51. Rxh4 {[%emt 0:00:04]} Rxg5 {[%emt 0:00:02]} 52. Rh8 {[%emt 0:00:02]} Rg4 {[%emt 0:00:07]} 53. Ke3 {[%emt 0:00:03]} Rg3+ {[%emt 0:00:02]} 54. Kd2 {[%emt 0:00:01]} Rb3 {[%emt 0:00:01]} 0-1